Workbook

Sheet Données_BP
A2: Porteur de projet | B2: Version vF
A3: Nom du projet | B3: Version vF
A4: Capacité injection gaz conforme | B4: 500
A5: CAPEX | B5: =D50 -> 23850000
A6: TRI projet cible | B6: 0.08 | C6: *Après impôts et inflation
A7: Prix du méthane de synthèse cible | B7: 100 | C7: *PCS
B9: Cellules à renseigner
A11: Ventilation des CAPEX
A12: Poste | C12: Définition | D12: Prix en € HT | H12: ANNEE 1 | I12: ANNEE 2 | J12: ANNEE 3 | K12: ANNEE 4 | L12: ANNEE 5 | M12: ANNEE 6 | N12: ANNEE 7 | O12: ANNEE 8 | P12: ANNEE 9 | Q12: ANNEE 10 | R12: ANNEE 11 | S12: ANNEE 12 | T12: ANNEE 13 | U12: ANNEE 14 | V12: ANNEE 15 | W12: ANNEE 16 | X12: ANNEE 17 | Y12: ANNEE 18 | Z12: ANNEE 19 | AA12: ANNEE 20
A13: Poste A | B13: Aménagement du site | D13: =SUM(D14:D18) -> 450000 | E13: =D13/$D$50 -> 0.01886792453
A14: A1 | B14: Foncier | C14: Prix d'achat de la parcelle imputé au projet le cas échéant. Si location renseigner le poste CF4 en OPEX | D14: 150000
A15: A2 | B15: VRD | C15: Frais de viabilisation, terrassement, réseaux (élec, gaz, …), etc. | D15: 50000
A16: A3 | B16: Génie Civil | C16: Coûts des infrastrutures et ouvrages (bâtiment, dalle béton, pont de levage, etc.) | D16: 150000
A17: A4 | B17: Utilités | C17: Coût d'accès utilités existantes sur site + l'éventuel rajout d'utilités manquantes | D17: 100000
A18: A5 | B18: Autres | C18: Préciser ici | D18: 0
A19: Poste B | B19: Brique Gestion des intrants (prétraitement pour assurer une homogéinité constante + capacité de stockage tampon a minima des intrants) | D19: =SUM(D20:D22) -> 300000 | E19: =D19/$D$50 -> 0.01257861635 | H19: =SUM(H20:H22) -> 0 | I19: =SUM(I20:I22) -> 0 | J19: 0 | K19: 0 | L19: 0 | M19: 0 | N19: 0 | O19: 0 | P19: 0 | Q19: 0 | R19: 0 | S19: 0 | T19: 0 | U19: 0 | V19: 0 | W19: 0 | X19: 0 | Y19: 0 | Z19: 0 | AA19: 0
A20: B1 | B20: Préparation de l'intrant | C20: Equipements de séchage, broyage, criblage, dilution, tri, mélange, etc. | D20: 200000
A21: B2 | B21: Stockage et convoyage | C21: Equipements de stockage (autres que Génie Civil) des intrants, chargeuses, etc. | D21: 100000
A22: B3 | B22: Autres | C22: Préciser ici | D22: 0
A23: Poste C | B23: Brique Process GH HP (allant de la pompe HP jusqu'au séparateur de phases et intégrant la production/ fourniture de l'apport thermique pour le process) | D23: =SUM(D24:D29) -> 15250000 | E23: =D23/$D$50 -> 0.6394129979 | H23: =SUM(H24:H29) -> 0 | I23: =SUM(I24:I29) -> 0 | J23: 0 | K23: 0 | L23: 0 | M23: 0 | N23: 0 | O23: 0 | P23: 0 | Q23: 0 | R23: 0 | S23: 0 | T23: 0 | U23: 0 | V23: 0 | W23: 0 | X23: 0 | Y23: 0 | Z23: 0 | AA23: 0
A24: C1 | B24: Equipements principaux | C24: Echangeurs de chaleur, séparateur de sels, réacteur GH, séparteur de phases, système de fourniture thermique, réfroidisseur, … | D24: 10000000
A25: C2 | B25: Système de pompage | C25: Equipements de pompage HP du déchet (un éventuel préchauffage du déchet en amont est à intégrer ici) | D25: 1500000
A26: C3 | B26: Utilités | C26: Equipements liés au besoin thermique (chauffage + éventuellement refroidissement) du process | D26: 1000000
A27: C4 | B27: Robinetterie/ tuyauterie + supportage/ chassis + autres | C27: Equipements mécaniques (vannes, robinets, piping, chassis, passerelles, …) | D27: 1500000
A28: C5 | B28: EIA | C28: Equipements électricité, contrôle, commande (instrumentation, matériel, logiciel, variateurs, lot électricité) | D28: 750000
A29: C6 | B29: Etudes, fabrication, montage et mise en service (MES) | C29: Etudes de détail, achat, fabrication, fourniture et montage sur site + MES | D29: 500000
A30: Poste D | B30: Brique Process Traitement de syngaz (produisant un méthane de synthèse injectable en sortie) | D30: =SUM(D31:D34) -> 3750000 | E30: =D30/$D$50 -> 0.1572327044 | H30: =SUM(H31:H34) -> 0 | I30: =SUM(I31:I34) -> 0 | J30: 0 | K30: 0 | L30: 0 | M30: 0 | N30: 0 | O30: 0 | P30: 0 | Q30: 0 | R30: 0 | S30: 0 | T30: 0 | U30: 0 | V30: 0 | W30: 0 | X30: 0 | Y30: 0 | Z30: 0 | AA30: 0
A31: D1 | B31: Unité de prétraitement du syngaz (si besoin) | C31: Equipements de prétraitement du syngaz avant méthanation (H2S) ou épuration (en fonction de la GH à catalyse ou à HT) | D31: 1000000
A32: D2 | B32: Unité de méthanation (si GH à HT) | C32: Equipements d'enrichissement du syngaz en CH4 + de séchage du gaz en sortie | D32: 1500000
A33: D3 | B33: Unité d'épuration/ de purification | C33: Equipements de mise aux spécifications du gaz au réseau (ex. séparation CO2, H2, etc.) | D33: 1000000
A34: D4 | B34: Etudes, montage et mise en service | C34: Etudes de détail, achat, fabrication, fourniture et montage sur site + MES | D34: 250000
A35: Poste E | B35: Briques Périphériques (nécessaires à l'intégration de toutes les briques et à celles en aval de la brique procédé GH) | D35: =SUM(D36:D41) -> 2500000 | E35: =D35/$D$50 -> 0.1048218029 | H35: =SUM(H37:H41) -> 0 | I35: =SUM(I37:I41) -> 0 | J35: =SUM(J37:J41) -> 0 | K35: =SUM(K37:K41) -> 0 | L35: =SUM(L37:L41) -> 0 | M35: =SUM(M37:M41) -> 0 | N35: =SUM(N37:N41) -> 0 | O35: =SUM(O37:O41) -> 0 | P35: =SUM(P37:P41) -> 0 | Q35: =SUM(Q37:Q41) -> 0 | R35: =SUM(R37:R41) -> 0 | S35: =SUM(S37:S41) -> 0 | T35: =SUM(T37:T41) -> 0 | U35: =SUM(U37:U41) -> 0 | V35: =SUM(V37:V41) -> 0 | W35: =SUM(W37:W41) -> 0 | X35: =SUM(X37:X41) -> 0 | Y35: =SUM(Y37:Y41) -> 0 | Z35: =SUM(Z37:Z41) -> 0 | AA35: =SUM(AA37:AA41) -> 0
A36: E1 | B36: Intégration globale (tuyauterie, EIA, ...) | C36: Coûts de piping, montage, infrastructure de communication (automatismes, IT) mise en service non inclus dans les postes B, C et D, et en aval (jusqu'au poste d'injection réseau et les stockages tampon des sortants) | D36: 200000
A37: E2 | B37: Sécurité gaz | C37: Equipements nécessaires à la sécurité de l'installation non inclus dans les postes C et D et leur périphérie (Torche, système de mis en sécurité gaz de l'installation GH, détection incendie, détection gaz, etc.) | D37: 500000
A38: E3 | B38: Process auxiliaires (en amont du stockage CO2 et H2) | C38: Equipements auxiliaires nécessaire au bon fonctionnement et non inclus dans le poste C et D (Ex : Liquéfaction du CO2, compression H2 à 350 bar (optionnel), etc.) | D38: 1000000
A39: E4 | B39: Stockages tampon des sortants | C39: Equipements nécessaires au stockage temporaire (+/- longtemps en fonction) des sortants solides, liquides et gazeux | D39: 500000
A40: E5 | B40: Injection réseau (coût fourni par l'opérateur de réseau) | C40: Equipements nécessaires à l'injection dans le réseau (raccordement au réseau gaz, poste d'injection, etc.). Indiquer ici le coût global, hors réfaction éventuelle. | D40: 300000
A41: E6 | B41: Autres | C41: Préciser ici | D41: 0
A42: Poste F | B42: Pilotage global du projet (de la phase étude jusqu'à la mise en service) assuré par un intégrateur | D42: =SUM(D43:D46) -> 1100000 | E42: =D42/$D$50 -> 0.04612159329 | H42: =SUM(H43:H46) -> 0 | I42: =SUM(I43:I46) -> 0 | J42: 0 | K42: 0 | L42: 0 | M42: 0 | N42: 0 | O42: 0 | P42: 0 | Q42: 0 | R42: 0 | S42: 0 | T42: 0 | U42: 0 | V42: 0 | W42: 0 | X42: 0 | Y42: 0 | Z42: 0 | AA42: 0
A43: F1 | B43: Maîtrise d'Œuvre globale (personnel équipes BE) | C43: Pilotage projet global, études d'intégration, achat équipements et travaux, supervision chantier + MES | D43: 500000
A44: F2 | B44: Maîtrise d'Œuvre globale (personnel équipe construction + MES) | C44: Suivi fabrication, montage et mise en service chantier global | D44: 500000
A45: F3 | B45: Dossiers d'autorisation | C45: Etudes et préparation de dossiers réglementaires (ICPE, …), permis de construire, etc. | D45: 100000
A46: F4 | B46: Autres | C46: Préciser ici | D46: 0
A47: Poste G | B47: Divers | D47: =SUM(D48:D49) -> 500000 | E47: =D47/$D$50 -> 0.02096436059 | H47: =SUM(H48:H49) -> 0 | I47: =SUM(I48:I49) -> 0 | J47: 0 | K47: 0 | L47: 0 | M47: 0 | N47: 0 | O47: 0 | P47: 0 | Q47: 0 | R47: 0 | S47: 0 | T47: 0 | U47: 0 | V47: 0 | W47: 0 | X47: 0 | Y47: 0 | Z47: 0 | AA47: 0
A48: G1 | B48: Aléas | D48: 500000 | E48: =D48/D50 -> 0.02096436059
A49: G2 | B49: Autres | C49: Préciser ici | D49: 0
A50: TOTAL CAPEX | D50: =D13+D19+D23+D30+D35+D42+D47 -> 23850000 | H50: =H13+H19+H23+H30+H35+H42+H47 -> 0 | I50: =I13+I19+I23+I30+I35+I42+I47 -> 0 | J50: =J13+J19+J23+J30+J35+J42+J47 -> 0 | K50: =K13+K19+K23+K30+K35+K42+K47 -> 0 | L50: =L13+L19+L23+L30+L35+L42+L47 -> 0 | M50: =M13+M19+M23+M30+M35+M42+M47 -> 0 | N50: =N13+N19+N23+N30+N35+N42+N47 -> 0 | O50: =O13+O19+O23+O30+O35+O42+O47 -> 0 | P50: =P13+P19+P23+P30+P35+P42+P47 -> 0 | Q50: =Q13+Q19+Q23+Q30+Q35+Q42+Q47 -> 0 | R50: =R13+R19+R23+R30+R35+R42+R47 -> 0 | S50: =S13+S19+S23+S30+S35+S42+S47 -> 0 | T50: =T13+T19+T23+T30+T35+T42+T47 -> 0 | U50: =U13+U19+U23+U30+U35+U42+U47 -> 0 | V50: =V13+V19+V23+V30+V35+V42+V47 -> 0 | W50: =W13+W19+W23+W30+W35+W42+W47 -> 0 | X50: =X13+X19+X23+X30+X35+X42+X47 -> 0 | Y50: =Y13+Y19+Y23+Y30+Y35+Y42+Y47 -> 0 | Z50: =Z13+Z19+Z23+Z30+Z35+Z42+Z47 -> 0 | AA50: =AA13+AA19+AA23+AA30+AA35+AA42+AA47 -> 0
A52: Financement global du projet
A53: Nom | C53: Définition | D53: Valeur
B54: Apport en fonds propres | C54: Montant autofinancé | D54: 500000 | E54: =D54/$D$50 -> 0.02096436059
B55: Apport en dette | C55: Montant emprunté | D55: 500000 | E55: =D55/$D$50 -> 0.02096436059
B56: Apport en subventions | C56: Montant des subventions à l'investissement envisagé | D56: 500000 | E56: 0.02096436059
B57: Autre source de financement | C57: Préciser ici | D57: 500000 | E57: 0.02096436059
A59: Ramp-up
A60: Nom | C60: Définition | H60: ANNEE 1 | I60: ANNEE 2 | J60: ANNEE 3 | K60: ANNEE 4 | L60: ANNEE 5 | M60: ANNEE 6 | N60: ANNEE 7 | O60: ANNEE 8 | P60: ANNEE 9 | Q60: ANNEE 10 | R60: ANNEE 11 | S60: ANNEE 12 | T60: ANNEE 13 | U60: ANNEE 14 | V60: ANNEE 15 | W60: ANNEE 16 | X60: ANNEE 17 | Y60: ANNEE 18 | Z60: ANNEE 19 | AA60: ANNEE 20
B61: Taux de charge | C61: Pourcentage de la capacité nominale année par année | H61: 0 | I61: 0 | J61: 0 | K61: 0 | L61: 0 | M61: 0 | N61: 0 | O61: 0 | P61: 0 | Q61: 0 | R61: 0 | S61: 0 | T61: 0 | U61: 0 | V61: 0 | W61: 0 | X61: 0 | Y61: 0 | Z61: 0 | AA61: 0
B62: Nombre d'heures | C62: Nombre d'heures de fonctionnement année par année | H62: 0 | I62: 0 | J62: 0 | K62: 0 | L62: 0 | M62: 0 | N62: 0 | O62: 0 | P62: 0 | Q62: 0 | R62: 0 | S62: 0 | T62: 0 | U62: 0 | V62: 0 | W62: 0 | X62: 0 | Y62: 0 | Z62: 0 | AA62: 0
A64: Ventilation des produits | D64: Valeurs nominales
A65: code | B65: Nom | C65: Définition | D65: Quantitatif | E65: Prix unitaire | F65: Taux inflation | H65: ANNEE 1 | I65: ANNEE 2 | J65: ANNEE 3 | K65: ANNEE 4 | L65: ANNEE 5 | M65: ANNEE 6 | N65: ANNEE 7 | O65: ANNEE 8 | P65: ANNEE 9 | Q65: ANNEE 10 | R65: ANNEE 11 | S65: ANNEE 12 | T65: ANNEE 13 | U65: ANNEE 14 | V65: ANNEE 15 | W65: ANNEE 16 | X65: ANNEE 17 | Y65: ANNEE 18 | Z65: ANNEE 19 | AA65: ANNEE 20
A66: P1 | B66: Méthane de synthèse (gaz renouvelable, bas-carbone ou récupération) conforme injecté | C66: Quantitatif en MWh_PCS par an et prix unitaire évalué par le porteur de projet | D66: 1000 | E66: 100 | F66: 0
A67: P2 | B67: Chaleur (s'il y en a un surplus à récupérer) | C67: Quantitatif en MWh par an et prix unitaire évalué par le porteur de projet | D67: 1000 | E67: 100 | F67: 0
A68: P3 | B68: CO2 | C68: Quantitatif en tonne par an et prix unitaire évalué par le porteur de projet | D68: 100 | E68: 3000 | F68: 0
A69: P4 | B69: H2 | C69: Quantitatif en tonne par an et prix unitaire évalué par le porteur de projet | D69: 100 | E69: 3000 | F69: 0
A70: P5 | B70: Résidu solide (minéraux, métaux) | C70: Quantitatif en tonne par an et prix unitaire évalué par le porteur de projet | D70: 100 | E70: 50 | F70: 0
A71: P6-A | B71: Résidu liquide (avec ou sans azote) | C71: Quantitatif en m3 par an et prix unitaire évalué par le porteur de projet | D71: 100 | E71: 10 | F71: 0
A72: P6-B | B72: Résidu azote (si séparation) | C72: Quantitatif en tonne par an et prix unitaire évalué par le porteur de projet | D72: 100 | E72: 25 | F72: 0
A73: P7 | B73: Redevance intrant | C73: Quantitatif en tonne par an et prix unitaire évalué par le porteur de projet. Si l'intrant représente une charge se référer à la ligne CV1 | D73: 100 | E73: 10 | F73: 0
A74: P8 | B74: Autre | C74: Préciser ici | D74: 12 | E74: 10 | F74: 0
A75: TOTAL PRODUITS | H75: =SUM(H66:H74) -> 0 | I75: =SUM(I66:I74) -> 0 | J75: 0 | K75: 0 | L75: 0 | M75: 0 | N75: 0 | O75: 0 | P75: 0 | Q75: 0 | R75: 0 | S75: 0 | T75: 0 | U75: 0 | V75: 0 | W75: 0 | X75: 0 | Y75: 0 | Z75: 0 | AA75: 0
A77: Ventilation des charges d'exploitation | D77: Valeurs nominales
A78: code | B78: Nom | C78: Définition | D78: Quantitatif | E78: Prix unitaire | F78: Taux inflation | H78: ANNEE 1 | I78: ANNEE 2 | J78: ANNEE 3 | K78: ANNEE 4 | L78: ANNEE 5 | M78: ANNEE 6 | N78: ANNEE 7 | O78: ANNEE 8 | P78: ANNEE 9 | Q78: ANNEE 10 | R78: ANNEE 11 | S78: ANNEE 12 | T78: ANNEE 13 | U78: ANNEE 14 | V78: ANNEE 15 | W78: ANNEE 16 | X78: ANNEE 17 | Y78: ANNEE 18 | Z78: ANNEE 19 | AA78: ANNEE 20
A79: CF1 | B79: Maintenance | C79: Coût de maintenance annuel | F79: 0
A80: CF2 | B80: Main d'œuvre opérationnelle | C80: Coût de suivi opérationnel (à distance ou in situ) | H80: =SUM(H81:H82) -> 0 | I80: =SUM(I81:I82) -> 0 | J80: 0 | K80: 0 | L80: 0 | M80: 0 | N80: 0 | O80: 0 | P80: 0 | Q80: 0 | R80: 0 | S80: 0 | T80: 0 | U80: 0 | V80: 0 | W80: 0 | X80: 0 | Y80: 0 | Z80: 0 | AA80: 0
A81: CF2.1 | B81: Cadre | C81: Coût annuel et nombre d'ETP niveau cadre envisagés | D81: 1 | E81: 45000 | F81: 0
A82: CF2.2 | B82: Technicien (habilité haute pression gaz, électricité, etc.) | C82: Coût annuel et nombre d'ETP niveau technicien envisagés | D82: 1 | E82: 35000 | F82: 0
A83: CF3 | B83: Service d'injection méthane de synthèse | C83: Coût annuel inhérant aux services d'injection dans le réseau (timbre + location du poste) | D83: 1 | E83: 100 | F83: 0
A84: CF4 | B84: Location du foncier | C84: Coût annuel lié à la location du foncier le cas échéant | F84: 0
A85: CF5 | B85: Autres charges fixes | C85: Assurances, contrôles réglementaires, frais de gestion annuels, licence et suivi d'exploitation, etc. | F85: 0
A86: CV1 | B86: Intrant (matière brute) | C86: Quantitatif en tonnes matière brute par an et prix unitaire (prévoir une ligne par typologie intrant) | H86: =SUM(H87:H90) -> 0 | I86: =SUM(I87:I90) -> 0 | J86: 0 | K86: 0 | L86: 0 | M86: 0 | N86: 0 | O86: 0 | P86: 0 | Q86: 0 | R86: 0 | S86: 0 | T86: 0 | U86: 0 | V86: 0 | W86: 0 | X86: 0 | Y86: 0 | Z86: 0 | AA86: 0
A87: CV1.1 | B87: Intrant 1 (matière brute) | C87: Coût évalué par le porteur de projet selon son PA | D87: 1 | E87: 50 | F87: 0
A88: CV1.2 | B88: Intrant 2 (matière brute) | C88: Coût évalué par le porteur de projet selon son PA | D88: 1 | E88: 50 | F88: 0
A89: CV2 | B89: Electricité | C89: Quantitatif en MWh/an et prix unitaire évalué par le porteur de projet | D89: 1000 | E89: 100 | F89: 0
A90: CV3 | B90: Eau du réseau | C90: Quantitatif en m³/an et prix unitaire évalué par le porteur de projet | D90: 100 | E90: 3 | F90: 0
A91: CV4 | B91: Consommables | C91: Possibilité d'agréger l'ensemble des consommables process dans "autres consommables" | H91: =SUM(H93:H96) -> 0 | I91: 0 | J91: 0 | K91: 0 | L91: 0 | M91: 0 | N91: 0 | O91: 0 | P91: 0 | Q91: 0 | R91: 0 | S91: 0 | T91: 0 | U91: 0 | V91: 0 | W91: 0 | X91: 0 | Y91: 0 | Z91: 0 | AA91: 0
A92: CV4.1 | B92: Consommables spécifiques au pré-traitement | C92: Coût évalué par le porteur de projet | D92: 1 | E92: 1000 | F92: 0
A93: CV4.2 | B93: Consommables spécifiques à la gazéification (ex: catalyseur, etc.) | C93: Coût évalué par le porteur de projet | D93: 1 | E93: 1000 | F93: 0
A94: CV4.3 | B94: Consommables spécifiques au traitement de syngaz (ex: catalyseur, etc.) | C94: Coût évalué par le porteur de projet | D94: 1 | E94: 1000 | F94: 0
A95: CV4.4 | B95: Consommables spécifiques à l'épuration | C95: Coût évalué par le porteur de projet | D95: 1 | E95: 1000 | F95: 0
A96: CV4.5 | B96: Autres consommables | C96: Autre consommable à préciser ici | D96: 1 | E96: 1000 | F96: 0
A97: CV5 | B97: Rejets | H97: =SUM(H98:H99) -> 0 | I97: 0 | J97: 0 | K97: 0 | L97: 0 | M97: 0 | N97: 0 | O97: 0 | P97: 0 | Q97: 0 | R97: 0 | S97: 0 | T97: 0 | U97: 0 | V97: 0 | W97: 0 | X97: 0 | Y97: 0 | Z97: 0 | AA97: 0
A98: CV5.1 | B98: Autres rejets solides | C98: Quantitatif en tonne par an et prix unitaire évalué par le porteur de projet | D98: 15000 | E98: 50 | F98: 0
A99: CV5.2 | B99: Autres rejets liquides | C99: Quantitatif en m³ par an et prix unitaire évalué par le porteur de projet | D99: 100 | E99: 3 | F99: 0
A100: CV7 | B100: Aléas | F100: 0
A101: CV8 | B101: Autres | C101: Préciser ici | F101: 0
A102: TOTAL OPEX | H102: =H79+SUM(H81:H85)+SUM(H87:H90)+SUM(H93:H96)+SUM(H98:H101) -> 0 | I102: 0 | J102: 0 | K102: 0 | L102: 0 | M102: 0 | N102: 0 | O102: 0 | P102: 0 | Q102: 0 | R102: 0 | S102: 0 | T102: 0 | U102: 0 | V102: 0 | W102: 0 | X102: 0 | Y102: 0 | Z102: 0 | AA102: 0
A104: Amortissements | H104: ANNEE 1 | I104: ANNEE 2 | J104: ANNEE 3 | K104: ANNEE 4 | L104: ANNEE 5 | M104: ANNEE 6 | N104: ANNEE 7 | O104: ANNEE 8 | P104: ANNEE 9 | Q104: ANNEE 10 | R104: ANNEE 11 | S104: ANNEE 12 | T104: ANNEE 13 | U104: ANNEE 14 | V104: ANNEE 15 | W104: ANNEE 16 | X104: ANNEE 17 | Y104: ANNEE 18 | Z104: ANNEE 19 | AA104: ANNEE 20
B105: Durée | D105: 10
B106: Type d'amortissement | D106: Linéaire
B107: Dotations aux armotissements | C107: Année par année
B108: Autres | C108: Année par année
A110: Dettes | H110: ANNEE 1 | I110: ANNEE 2 | J110: ANNEE 3 | K110: ANNEE 4 | L110: ANNEE 5 | M110: ANNEE 6 | N110: ANNEE 7 | O110: ANNEE 8 | P110: ANNEE 9 | Q110: ANNEE 10 | R110: ANNEE 11 | S110: ANNEE 12 | T110: ANNEE 13 | U110: ANNEE 14 | V110: ANNEE 15 | W110: ANNEE 16 | X110: ANNEE 17 | Y110: ANNEE 18 | Z110: ANNEE 19 | AA110: ANNEE 20
B111: Taux d'emprunt | C111: Taux d'intérêt bancaire pour la part de l'investissement empruntée | D111: 0.02
B112: Durée d'emprunt | C112: Durée de l'emprunt bancaire | D112: 10
B113: Annuité
B114: Dont capital
B115: Dont intérêts
A117: Impôts et taxes (non obligatoire si inconnus) | H117: ANNEE 1 | I117: ANNEE 2 | J117: ANNEE 3 | K117: ANNEE 4 | L117: ANNEE 5 | M117: ANNEE 6 | N117: ANNEE 7 | O117: ANNEE 8 | P117: ANNEE 9 | Q117: ANNEE 10 | R117: ANNEE 11 | S117: ANNEE 12 | T117: ANNEE 13 | U117: ANNEE 14 | V117: ANNEE 15 | W117: ANNEE 16 | X117: ANNEE 17 | Y117: ANNEE 18 | Z117: ANNEE 19 | AA117: ANNEE 20
B118: Impôts, taxes et versements (ITVA) | H118: =SUM(H119:H123) -> 0 | I118: =SUM(I119:I123) -> 0 | J118: 0 | K118: 0 | L118: 0 | M118: 0 | N118: 0 | O118: 0 | P118: 0 | Q118: 0 | R118: 0 | S118: 0 | T118: 0 | U118: 0 | V118: 0 | W118: 0 | X118: 0 | Y118: 0 | Z118: 0 | AA118: 0
B119: CFE
B120: CVAE
B121: TACVAE
B122: Frais de gestion
B123: Autres taxes
B124: Impôt sur les sociétés (IS) | C124: Indiquer si la structure juridique est soumise ou non à l'IS. Ventiler par année si calculé. | D124: Soumis

Sheet Note_explicative_BP
B2: Porteur de projet | C2: Version vF
B3: Nom du projet | C3: Version vF
B4: Capacité injection gaz conforme | C4: 500
B5: CAPEX | C5: =D48 -> 0
B6: TRI projet cible | C6: 0.08
B7: Prix du méthane de synthèse cible | C7: 100
B9: Cellules à renseigner
B13: Situation de référence | D13: Hypothèses prises | E13: Commentaires
B14: Traitement des déchets actuel, approvisionnement en énergie... | D14: 1) Détail CAPEX
D15: Hypothèse | E15: Préciser ici
D16: Hypothèse
D17: Hypothèse
D18: 2) Détail Ressources
B19: Explication prix du méthane de synthèse cible | D19: Hypothèse | E19: Préciser ici
B20: Préciser la part de subvention visée pour completer l'écart entre le prix de marché du gaz et le prix du syngaz | D20: Hypothèse
D21: Hypothèse
D22: 3) Détail Ramp Up
D23: Hypothèse | E23: Préciser ici
D24: Hypothèse
B25: Explication montage subventions | D25: Hypothèse
B26: Demandes de subventions Répartition CAPEX/OPEX... | D26: 4) Détail OPEX
D27: Hypothèse | E27: Préciser ici
D28: Hypothèse
D29: Hypothèse
D30: 5) Détail ventalilation produits
D31: Hypothèse | E31: Préciser ici
B32: Explication cible TRI | D32: Hypothèse
B33: Taux d'actualisation…. | D33: Hypothèse
D34: 6) Détail ventalilation charges d'exploitation
D35: Hypothèse | E35: Préciser ici
D36: Hypothèse
D37: Hypothèse
B38: Autres précisions | D38: 7) Détail Amortissements
B39: Préciser ici | D39: Hypothèse | E39: Préciser ici
D40: Hypothèse
D41: Hypothèse
D42: 8) Détail Dettes
D43: Hypothèse | E43: Préciser ici
D44: Hypothèse
D45: Hypothèse
